[Event "82nd Italian Championship 2023"]
[Site "Brescia"]
[Date "2023.12.01"]
[Round "4.3"]
[White "Sonis, Francesco"]
[Black "Brunello, Sabino"]
[Result "1/2-1/2"]
[ECO "D35"]
[WhiteElo "2564"]
[BlackElo "2492"]
[Annotator "TA"]
[PlyCount "88"]
[EventDate "2023.11.28"]
[EventType "tourn"]
[EventCountry "ITA"]
[SourceTitle "playchess.com"]
[Source "ChessBase"]
[SourceQuality "1"]
[TimeControl "40/6000+30:20/3000+30:900+30"]

{[%evp 12,88,8,0,4,13,21,24,32,10,6,6,8,4,6,0,0,0,0,0,0,0,0,0,0,-39,-31,-23,-30,-28,0,0,8,6,21,11,85,0,0,0,0,0,29,13,13,13,13,13,17,15,16,19,49,49,49,48,48,49,49,49,48,49,56,33,27,26,35,11,41,41,49,8,8,8,8,8,8,8,8]} 1. d4 {[%emt 0:00:03]} Nf6 {[%emt 0:00:07]} 2. c4 {[%emt 0:00:19]} e6 {[%emt 0:00:07]} 3. Nc3 {[%emt 0:00:09]} d5 {[%emt 0:00:07]} 4. cxd5 {[%emt 0:00:37]} Nxd5 {[%emt 0:00:52]} 5. e4 {[%emt 0:00:31]} Nxc3 {[%emt 0:00:06]} 6. bxc3 {[%emt 0:00:04]} c5 {[%emt 0:00:04]} 7. a3 {[%emt 0:00:16]} cxd4 {[%emt 0:01:02] D35: Queen's Gambit Declined: Exchange Variation.} 8. cxd4 {[%emt 0:00:05]} e5 $1 {[%emt 0:00:33] 8...e5 scores better than 8...Be7.} 9. Nf3 {[%emt 0:18:30]} exd4 {[%emt 0:00:10] White has an edge.} 10. Nxd4 {[%emt 0:00:06] [#]} Bc5 $146 {[%emt 0:00:55]} ({Predecessor:} 10... Be7 11. Be3 O-O 12. Be2 b6 13. O-O Bb7 14. Nf5 Bxe4 15. Bf3 Bxf3 16. Qxf3 Na6 {1-0 Al Hosani,O (2191)-Baches Garcia,G (2329) Titled Tuesday intern op 25th Jan blitz 2022 (3)}) 11. Bb5+ {[%emt 0:00:11]} Bd7 {[%emt 0:45:27]} 12. O-O {[%emt 0:04:43][%cal Od4e6]} O-O {[%emt 0:04:55]} ({But not} 12... Bxd4 13. Qxd4 Qf6 14. Qxf6 gxf6 15. Be2 $16) 13. Bc4 {[%emt 0:11:42]} Nc6 {[%emt 0:12:35][%cal Bb8c6,Bc6e5,Be5g4][%mdl 32]} 14. Nb3 {[%emt 0:00:37]} Bb6 {[%emt 0:00:16]} 15. a4 {[%emt 0:01:43][%cal Oa4a5]} Ne5 {[%emt 0:14:15]} 16. Bd5 {[%emt 0:29:58]} Qh4 {[%emt 0:01:25] [#] ...Ng4 is the strong threat.} 17. Qd2 {[%emt 0:03:00]} Bc7 {[%emt 0:09:02][%cal Oe5f3] ( -> ...Nf3+!)} 18. f4 {[%emt 0:03:03]} (18. h3 $5 {[%cal Rb3d4]}) 18... Ng4 {[%emt 0:00:50][%csl Gg4][%cal Rh4h2]} 19. h3 {[%emt 0:02:36]} Nf6 {[%emt 0:00:32]} 20. Ba3 {[%emt 0:01:32]} Rfe8 {[%emt 0:09:31][%cal Oa8d8] Threatens to win with ...Rad8!} 21. Nc5 {[%emt 0:01:17] Black must now prevent Nxd7.} Bb6 {[%emt 0:03:48][%cal Oa8c8] Hoping for ...Rac8!} 22. a5 {[%emt 0:00:20]} Bxc5+ {[%emt 0:00:15]} (22... Nxd5 {simplifies} 23. axb6 Nxb6 24. Nxb7 Bb5) 23. Bxc5 {[%emt 0:00:02]} Rad8 {[%emt 0:00:19]} (23... Nxd5 $11 24. exd5 Qh5) 24. Qf2 {[%emt 0:05:53] White is more active.} (24. Bxb7 $16 {Rad1 would be deadly.} Bc6 25. Qb2 Bxb7 26. Qxb7) 24... Qxf2+ $11 {[%emt 0:03:30]} 25. Bxf2 {[%emt 0:01:06]} Nxd5 {[%emt 0:01:29]} 26. exd5 {[%emt 0:00:05]} Bf5 {[%emt 0:00:36]} 27. Rfd1 {[%emt 0:00:06]} (27. Rad1 $5 {[%cal Rf2a7]}) 27... Be4 {[%emt 0:00:17]} 28. d6 {[%emt 0:00:43]} Re6 {[%emt 0:00:25]} 29. Bc5 {[%emt 0:00:07]} h5 {[%emt 0:00:53]} 30. Rd2 {[%emt 0:00:45]} b6 {[%emt 0:00:34]} 31. Bb4 {[%emt 0:00:05]} Rd7 {[%emt 0:00:24]} 32. axb6 {[%emt 0:00:31]} axb6 {[%emt 0:00:07]} 33. Ra6 {[%emt 0:00:02]} Bf5 {[%emt 0:00:49]} 34. Rd5 {[%emt 0:00:47]} g6 $1 {[%emt 0:00:24]} 35. Rxb6 {[%emt 0:00:27]} f6 {[%emt 0:00:24]} 36. Kf2 {[%emt 0:03:28]} Kf7 {[%emt 0:00:31]} 37. Ra5 {[%emt 0:01:33]} Re4 {[%emt 0:00:19]} 38. Kf3 {[%emt 0:00:10] aiming for g4.} Rc4 {[%emt 0:00:10]} 39. g4 {[%emt 0:01:44]} hxg4+ {[%emt 0:00:25]} 40. hxg4 {[%emt 0:00:06]} Bc2 {[%emt 0:00:16]} 41. Rb8 {[%emt 0:51:12]} Bd1+ {[%emt 0:51:23] The position is equal.} 42. Kg3 {[%emt 0:01:46]} g5 {[%emt 0:00:00][%mdl 64] [#] Decoy} 43. fxg5 {[%emt 0:00:00]} Rxg4+ {[%emt 0:00:00]} 44. Kf2 {[%emt 0:00:00]} Rxg5 {[%emt 0:00:00] Weighted Error Value: White=0.08 (flawless) /Black=0.08 (flawless)} 1/2-1/2

[Event "82nd Italian Championship 2023"]
[Site "Brescia"]
[Date "2023.12.01"]
[Round "4.4"]
[White "Moroni, Luca Jr"]
[Black "Lodici, Lorenzo"]
[Result "0-1"]
[ECO "A25"]
[WhiteElo "2575"]
[BlackElo "2550"]
[Annotator "TA"]
[PlyCount "148"]
[EventDate "2023.11.28"]
[EventType "tourn"]
[EventCountry "ITA"]
[SourceTitle "playchess.com"]
[Source "ChessBase"]
[SourceQuality "1"]
[TimeControl "40/6000+30:20/3000+30:900+30"]

{[%evp 18,148,28,26,35,17,46,28,44,32,24,32,26,20,23,8,18,14,18,15,14,17,9,14,43,12,10,17,17,12,23,0,0,0,0,0,0,0,0,0,13,0,0,-28,-37,-29,-19,-54,-38,-87,-82,-209,-209,-216,-231,-257,-257,-1156,-1116,-958,-1019,-1158,-1203,-1108,-1030,-757,-749,-1531,-1395,-1278,-1444,-1372,-1432,-1273,-1134,-1418,-1297,-1431,-1386,-1260,-1380,-1174,-1248,-1188,-768,-1527,-1493,-5206,-1048,-2384,-956,-29963,-29966,-29965,-29967,-29966,-29968,-29968,-29967,-29967,-29968,-29967,-29969,-29970,-29971,-29971,-29972,-29972,-29973,-29973,-29974,-29974,-29975,-29975,-29973,-29973,-29972,-29972,-29973,-29973,-29974,-29974,-29975,-29975,-29976,-29976,-29977,-29976,-29975,-29975,-29975,-29963,-29962]} 1. c4 {[%emt 0:00:02]} e5 {[%emt 0:08:36]} 2. g3 {[%emt 0:00:10]} Nc6 {[%emt 0:02:45]} 3. Bg2 {[%emt 0:00:13]} g6 {[%emt 0:00:05]} 4. Nc3 {[%emt 0:00:24]} Bg7 {[%emt 0:00:28]} 5. e3 {[%emt 0:00:27]} f5 {[%emt 0:00:27]} 6. Nge2 {[%emt 0:00:05]} Nf6 {[%emt 0:00:05]} 7. Rb1 {[%emt 0:03:15]} a5 {[%emt 0:09:03]} 8. O-O {[%emt 0:08:48]} d6 {[%emt 0:01:53]} 9. b3 {[%emt 0:01:12]} O-O {[%emt 0:04:24]} 10. d3 {[%emt 0:10:04]} Be6 {[%emt 0:04:27] A25: English Opening vs King's Indian with ...Nc6 but without early d3.} 11. Nd5 {[%emt 0:08:41]} Qd7 {[%emt 0:02:24]} 12. Nec3 {[%emt 0:05:54][%cal Be2c3,Bc3d5,Bd5c7,Bc7a6,Ba6c5][%mdl 32]} Rab8 {[%emt 0:03:16] [#] White has an edge.} 13. Qd2 $146 {[%emt 0:09:40]} ({Predecessor:} 13. a3 Ne7 14. Bd2 b6 15. Qc2 Rfc8 16. b4 axb4 17. axb4 c6 18. Nxe7+ Qxe7 19. b5 {1-0 Popovic,D (2261)-Zivanovic,N (2185) SRB-chT2 East CS 2011 (3.2)}) 13... Bf7 {[%emt 0:05:55]} 14. Bb2 {[%emt 0:02:04]} Nxd5 {[%emt 0:09:01]} 15. Nxd5 {[%emt 0:06:20]} b5 {[%emt 0:00:53]} 16. Rfc1 {[%emt 0:10:25] Threatens to win with cxb5.} b4 {[%emt 0:08:02]} 17. c5 {[%emt 0:06:42]} Rb5 {[%emt 0:12:32] [#]} 18. Nxc7 $1 {[%emt 0:06:15][%mdl 64] Remove Defender} Rxc5 {[%emt 0:00:07]} (18... Qxc7 19. cxd6 Qxd6 20. Rxc6 $16) 19. Na6 {[%emt 0:01:31]} Rxc1+ {[%emt 0:01:09]} 20. Rxc1 {[%emt 0:00:04]} d5 {[%emt 0:05:01]} (20... Rc8 $2 21. Rxc6 e4 22. Rxc8+ Qxc8 23. Bxg7 Kxg7 24. dxe4 (24. Qb2+ Qc3 $15) 24... Qxa6 25. Qd4+ Kg8 26. exf5 $18) (20... Nb8 $5 {[%cal Rb8a6]} 21. Nc7 (21. Rc7 Qd8 $17) 21... Rc8 $14) 21. d4 {[%emt 0:02:40]} (21. Nc5 $5 {[%cal Rc5d7]} Qc7 22. Na4 $14) 21... exd4 {[%emt 0:03:42]} 22. exd4 {[%emt 0:01:16]} Qd6 {[%emt 0:00:45]} 23. Nc5 {[%emt 0:00:05]} f4 {[%emt 0:00:44]} 24. Re1 {[%emt 0:07:35]} (24. gxf4 $5 {[%cal Rc5d3]} Nd8 25. Nd3 $14) 24... fxg3 {[%emt 0:10:48]} 25. hxg3 {[%emt 0:00:09]} Rc8 {[%emt 0:00:04][%cal Oc6d4]} 26. Rc1 {[%emt 0:06:04]} Rc7 {[%emt 0:00:08]} 27. Kh2 {[%emt 0:02:36]} h5 {[%emt 0:02:36][%cal Bh7h5,Bh5h4][%mdl 32]} 28. f4 {[%emt 0:02:25]} Bf6 {[%emt 0:09:26]} 29. Qf2 {[%emt 0:02:49]} Ne7 {[%emt 0:02:29]} 30. Re1 {[%emt 0:00:23] [#]} h4 $1 {[%emt 0:00:29] Hoping for ...hxg3+.} 31. Bh3 {[%emt 0:02:01]} Nc6 {[%emt 0:01:52][%cal Oc6d4] Threatening ...Nxd4!} 32. Be6 {[%emt 0:03:07]} (32. Rc1 {with more complications.} hxg3+ 33. Kxg3 Ne7 34. Kf3) 32... Nxd4 $1 {[%emt 0:01:18]} 33. Bxd4 {[%emt 0:02:50]} (33. Nd7 $15 Nf3+ 34. Qxf3 Bxb2 35. Qg4 (35. Bxf7+ Kxf7 36. Ne5+ Kg7 $17)) 33... Bxd4 $17 {[%emt 0:00:05]} 34. Bxf7+ {[%emt 0:00:38] This move loses the game for White.} (34. Qxd4 $17 Qxc5 35. Bxf7+ Kxf7 36. Qxc5 Rxc5 37. Re2) 34... Kxf7 $19 {[%emt 0:00:11]} 35. Qxd4 {[%emt 0:00:29]} Qxc5 {[%emt 0:00:14]} 36. Qxc5 {[%emt 0:00:28]} Rxc5 $15 {[%emt 0:00:47][%mdl 4096] Endgame KR-KR} 37. Re2 {[%emt 0:00:10]} (37. Kh3 hxg3 38. Kxg3) 37... d4 $19 {[%emt 0:02:11][%cal Bd5d4,Bd4d3][%mdl 32] ...d3 is the strong threat.} 38. Rd2 {[%emt 0:00:32]} Rd5 {[%emt 0:00:28]} 39. gxh4 {[%emt 0:00:36]} Kf6 {[%emt 0:00:29]} 40. Kg3 {[%emt 0:00:06]} Kf5 {[%emt 0:00:27]} 41. Kf3 {[%emt 0:50:28]} d3 $1 {[%emt 0:50:39]} 42. Ke3 {[%emt 0:00:00]} Rd7 {[%emt 0:00:00]} 43. Kf3 {[%emt 0:00:00]} Rd8 {[%emt 0:00:00]} 44. Ke3 {[%emt 0:00:00]} Kg4 {[%emt 0:00:00]} 45. Rg2+ {[%emt 0:00:00] [#]} Kh3 $1 {[%emt 0:00:00]} 46. Rd2 {[%emt 0:00:00] [#]} Kg3 $1 {[%emt 0:00:00]} 47. h5 {[%emt 0:00:00]} gxh5 {[%emt 0:00:00] And now ...h4 would win.} 48. f5 {[%emt 0:00:00]} Re8+ {[%emt 0:00:00]} 49. Kxd3 {[%emt 0:00:00]} Re5 {[%emt 0:00:00]} 50. f6 {[%emt 0:00:00]} Rf5 {[%emt 0:00:00]} 51. Kc4 {[%emt 0:00:00]} Rxf6 {[%emt 0:00:00] White must now prevent ...h4.} 52. Rd5 {[%emt 0:00:00]} Rf4+ {[%emt 0:00:00]} (52... h4 $142 53. Rg5+ Kf3 54. Rxa5 Rf4+ 55. Kd3 h3) 53. Kb5 {[%emt 0:00:00]} Kg4 {[%emt 0:00:00]} (53... h4 $142 54. Kxa5 h3 55. Rd3+ Kg4) 54. Ka4 {[%emt 0:00:00]} Rf5 {[%emt 0:00:00] Black mates.} 55. Rd4+ {[%emt 0:00:00]} Kg5 {[%emt 0:00:00]} 56. Rd1 {[%emt 0:00:00]} h4 {[%emt 0:00:00]} 57. Rg1+ {[%emt 0:00:00]} Kf4 {[%emt 0:00:00]} 58. Rf1+ {[%emt 0:00:00]} Ke4 {[%emt 0:00:00]} 59. Re1+ {[%emt 0:00:00]} Kd3 {[%emt 0:00:00]} 60. Rh1 {[%emt 0:00:00]} Rh5 {[%emt 0:00:00]} 61. Rh3+ {[%emt 0:10:12]} Ke2 {[%emt 0:00:00]} 62. a3 {[%emt 0:05:14]} bxa3 {[%emt 0:00:00]} 63. Kxa3 {[%emt 0:00:19]} Kf2 {[%emt 0:00:00]} 64. Kb2 {[%emt 0:04:03]} Kg2 {[%emt 0:00:00]} 65. Rc3 {[%emt 0:00:03]} h3 {[%emt 0:00:00]} 66. Rc2+ {[%emt 0:00:03]} Kg3 {[%emt 0:00:00]} 67. Rc3+ {[%emt 0:00:03]} Kf4 {[%emt 0:00:00]} 68. Rc4+ {[%emt 0:00:03]} Ke3 {[%emt 0:00:00]} 69. Rc3+ {[%emt 0:00:03]} Kd4 {[%emt 0:00:00]} 70. Rc4+ {[%emt 0:00:03]} Kd5 {[%emt 0:00:00]} 71. Ra4 {[%emt 0:00:04]} Ke6 {[%emt 0:00:00]} 72. Re4+ {[%emt 0:00:18]} Kf6 {[%emt 0:00:00]} 73. Rf4+ {[%emt 0:00:04]} Kg6 {[%emt 0:00:00]} 74. Rg4+ {[%emt 0:00:08]} Kh6 {[%emt 0:00:00] Weighted Error Value: White=0.58/Black=0.29 (precise)} 0-1

[Event "82nd Italian Championship 2023"]
[Site "Brescia"]
[Date "2023.12.01"]
[Round "4.5"]
[White "Carnicelli, Valerio"]
[Black "Dvirnyy, Danyyil"]
[Result "1-0"]
[ECO "C24"]
[WhiteElo "2423"]
[BlackElo "2495"]
[Annotator "TA"]
[PlyCount "109"]
[EventDate "2023.11.28"]
[EventType "tourn"]
[EventCountry "ITA"]
[SourceTitle "playchess.com"]
[Source "ChessBase"]
[SourceQuality "1"]
[TimeControl "40/6000+30:20/3000+30:900+30"]

{[%evp 11,109,40,52,55,50,33,33,28,41,37,43,0,1,0,0,-20,-16,-23,0,0,22,19,35,0,49,40,36,37,52,52,66,53,82,77,83,79,95,76,100,77,83,58,58,54,64,71,93,62,77,0,82,56,84,86,117,53,101,58,71,67,77,28,47,34,64,54,123,128,352,248,312,321,453,439,436,447,438,439,433,449,454,456,439,436,543,313,314,262,456,279,478,477,629,603,542,289,997,976,1464,1414]} 1. e4 {[%emt 0:00:31]} e5 {[%emt 0:00:37]} 2. Nf3 {[%emt 0:00:09]} Nc6 {[%emt 0:00:07]} 3. Bc4 {[%emt 0:00:04]} Nf6 {[%emt 0:00:25]} 4. d3 {[%emt 0:00:06]} d5 {[%emt 0:01:14]} 5. exd5 {[%emt 0:00:46]} Nxd5 {[%emt 0:00:07]} 6. O-O {[%emt 0:00:16]} Nb6 {[%emt 0:00:34]} 7. Bb5 {[%emt 0:00:42] C24: Bishop's Opening: 2...Nf6.} Bd6 {[%emt 0:00:20]} 8. Re1 {[%emt 0:07:13]} (8. Nxe5 {with more complications.} Bxe5 9. Bxc6+ bxc6 10. Re1) 8... f6 {[%emt 0:01:40]} 9. a4 {[%emt 0:05:40] [#] White is slightly better.} a6 $146 {[%emt 0:02:30]} ({Predecessor:} 9... Bd7 10. a5 Nd5 11. a6 b6 12. d4 Nde7 13. dxe5 fxe5 14. Nc3 O-O 15. Bg5 Qe8 16. Ne4 Qg6 17. Nxd6 cxd6 18. Bxe7 Rxf3 19. Qxf3 Nd4 20. Qxa8+ {1-0 Salimova,N (2372)-Kujawski,A (2201) Titled Tuesday intern op 3rd Jan blitz 2019 (2)}) 10. Bxc6+ {[%emt 0:04:03]} bxc6 {[%emt 0:00:06]} 11. Nbd2 {[%emt 0:05:32]} (11. a5 $5 {[%cal Ra5b6]} Nd7 12. Na3 $14) 11... c5 {[%emt 0:03:06]} 12. Ne4 {[%emt 0:03:56]} O-O {[%emt 0:08:51]} 13. b3 {[%emt 0:07:39]} Bb7 {[%emt 0:06:11]} 14. Ba3 {[%emt 0:08:22][%cal Bc1a3,Ba3b2,Bb2c3][%mdl 32]} Nd7 {[%emt 0:02:00]} 15. Rb1 {[%emt 0:09:47]} a5 {[%emt 0:14:51]} 16. Bb2 {[%emt 0:01:14]} Rf7 {[%emt 0:04:55]} 17. Bc3 {[%emt 0:02:45]} Nb8 {[%emt 0:01:47]} (17... Nb6 $11 {is superior.}) 18. Nfd2 $14 {[%emt 0:08:40]} Nc6 {[%emt 0:01:23]} 19. Nc4 {[%emt 0:00:03]} Bf8 {[%emt 0:05:04]} 20. Qd2 {[%emt 0:02:45]} Nb4 {[%emt 0:03:11]} 21. f3 {[%emt 0:02:28]} Ra6 {[%emt 0:02:35]} 22. Qf2 {[%emt 0:04:38]} Qd5 {[%emt 0:00:31]} 23. Re2 {[%emt 0:01:27]} Bc8 {[%emt 0:04:39]} 24. Rbe1 {[%emt 0:01:30]} h6 {[%emt 0:06:56]} 25. Kh1 {[%emt 0:04:21]} Nc6 {[%emt 0:00:32]} 26. Re3 {[%emt 0:03:58]} Nb4 {[%emt 0:03:20]} 27. Qd2 {[%emt 0:01:18]} Qd8 {[%emt 0:00:40]} 28. R3e2 {[%emt 0:00:45]} Kh7 {[%emt 0:07:19]} 29. Kg1 {[%emt 0:00:25]} Kg8 {[%emt 0:01:10]} 30. Kh1 {[%emt 0:01:34]} Kh7 $1 {[%emt 0:00:16]} 31. f4 {[%emt 0:03:09]} exf4 {[%emt 0:03:32]} 32. Qxf4 {[%emt 0:03:22]} Nd5 {[%emt 0:01:13]} 33. Qd2 {[%emt 0:01:16] White is much more active. The black rooks are badly placed.} (33. Qf3 $16) 33... Nxc3 {[%emt 0:03:48]} (33... Be7 $14) 34. Qxc3 {[%emt 0:00:59]} (34. Nxc3 {simplifies} Re7 35. Rxe7 Bxe7 36. Qe2) 34... Qd4 {[%emt 0:00:33]} 35. Qd2 {[%emt 0:02:12]} (35. Nxa5 $2 Qxc3 36. Nxc3 Rxa5 $19) 35... f5 {[%emt 0:00:54] [#]} 36. Ne5 {[%emt 0:06:49]} Re7 {[%emt 0:03:18]} (36... Qxe5 $2 37. Ng5+ hxg5 38. Rxe5 $18) 37. Ng3 {[%emt 0:05:36]} Qh4 {[%emt 0:13:46]} 38. Qc3 {[%emt 0:02:53]} (38. Qe3 {keeps more tension.} Re8 39. Qf3 Bd6 40. Nc4) 38... Qf6 {[%emt 0:03:47]} (38... Qd4 $14 39. Qd2 Kg8) 39. Nh5 $16 {[%emt 0:00:35]} (39. Qxc5 $6 f4 40. Nf1 Re8 $11) 39... Qe6 {[%emt 0:01:38] Loses the game.} (39... Qg5 $16 {was worth a try.} 40. Nf3 Qxh5 41. Rxe7 Bb7) 40. Nf4 {[%emt 0:00:23]} (40. Qxc5 Qd6 41. Qc3 Qd8 $16) 40... Qd6 {[%emt 0:00:30]} 41. Nfg6 {[%emt 0:09:15] Prevents Qd8. Excellent horsemanship.} Re6 {[%emt 0:14:33] [#]} (41... Re8 $142 42. Nc4 {[%mdl 64] Discovered Attack, Double Attack} Qxg6) 42. Nf7 $1 $18 {[%emt 0:05:31]} Rxg6 {[%emt 0:02:43]} 43. Nxd6 {[%emt 0:00:09]} Bxd6 {[%emt 0:00:06]} 44. Qc4 {[%emt 0:15:41] Re8 would be deadly.} Bb7 {[%emt 0:00:11]} 45. Rf2 {[%emt 0:00:05] Hoping for Re8.} Ra8 {[%emt 0:01:45] Inhibits Re8.} 46. Qb5 {[%emt 0:03:39] Repels Bc6} (46. Rxf5 $2 Bxg2+ 47. Kg1 Bd5+ 48. Kf2 Bxc4 $19) 46... Rb8 {[%emt 0:00:11]} 47. Qxa5 {[%emt 0:02:45]} Bc6 {[%emt 0:00:50]} 48. Qc3 {[%emt 0:04:17] Strongly threatening d4.} (48. Rxf5 $2 Bxg2+ 49. Kg1 Be4+ 50. Kf2 Bxf5 $19) 48... Rb4 {[%emt 0:00:12]} 49. h3 {[%emt 0:04:24] Threatens to win with a5.} (49. Rxf5 $2 Bxg2+ 50. Kg1 Be4+ $19) 49... Rg3 $2 {[%emt 0:03:09]} (49... Rh4 50. Re3 (50. Rxf5 $2 Rxh3+ 51. Kg1 Rxg2+ 52. Kf1 Rh1#) 50... Rh5) 50. Re6 {[%emt 0:04:19]} (50. Rxf5 $2 Bxg2+ 51. Kg1 Bxh3+ 52. Kf2 Bxf5 $19) 50... Rh4 $2 {[%emt 0:04:45]} (50... Rxh3+ 51. Kg1 Rg4) 51. Kg1 {[%emt 0:00:02]} (51. Rxf5 $2 Rhxh3+ 52. Kg1 Rxg2+ 53. Kf1 Rh1#) 51... f4 {[%emt 0:00:20] [#]} 52. Rxd6 $1 {[%emt 0:01:36]} cxd6 {[%emt 0:00:06]} 53. Kh2 {[%emt 0:02:00]} g5 $2 {[%emt 0:00:33]} (53... Rh5 54. Qd2 (54. Rxf4 $2 {is a self mate.} Rxg2+ 55. Kh1 Rxh3#) 54... Rhg5) 54. Qf6 {[%emt 0:00:36]} Bxg2 {[%emt 0:00:36]} 55. Qf5+ {[%emt 0:00:27] Weighted Error Value: White=0.34/Black=0.43} 1-0

[Event "82nd Italian Championship 2023"]
[Site "Brescia"]
[Date "2023.12.01"]
[Round "4.6"]
[White "Iermito, Sebastian"]
[Black "David, Alberto"]
[Result "1/2-1/2"]
[WhiteElo "2524"]
[BlackElo "2532"]
[Annotator "TA"]
[PlyCount "19"]
[EventDate "2023.11.28"]
[EventType "tourn"]
[EventCountry "ITA"]
[SourceTitle "playchess.com"]
[Source "ChessBase"]
[SourceQuality "1"]
[TimeControl "40/6000+30:20/3000+30:900+30"]

{[%evp 9,19,10,1,14,8,0,0,0,0,-10,0,-5]} 1. e4 {[%emt 0:00:03]} c5 {[%emt 0:00:32]} 2. Nf3 {[%emt 0:00:05]} e6 {[%emt 0:00:11]} 3. d4 {[%emt 0:00:04]} cxd4 {[%emt 0:00:05]} 4. Nxd4 {[%emt 0:00:03]} Nc6 {[%emt 0:01:43]} 5. Bf4 {[%emt 0:00:05]} d6 {[%emt 0:01:17] The position is equal.} 6. Nxc6 {[%emt 0:00:04] B44: Sicilian: Taimanov: 5 Nb5.} bxc6 {[%emt 0:00:04]} 7. Bd3 {[%emt 0:00:13]} Rb8 {[%emt 0:03:54]} 8. Nd2 {[%emt 0:00:07]} e5 {[%emt 0:01:07]} 9. Be3 {[%emt 0:00:04]} Qc7 {[%emt 0:00:39] [#]} 10. O-O $146 {[%emt 0:20:09] Not much happened in this game.   Weighted Error Value: White=0.04 (flawless) /Black=0.00 (flawless)} ({Predecessor:} 10. c4 Nf6 11. h3 Be7 12. Qc2 O-O 13. O-O Be6 14. Rfc1 h6 15. Nb1 Nd7 16. Nc3 Bg5 17. Bxg5 hxg5 18. a3 {0-1 Gracia Alvarez,G (2201)-Sandoval Mercado,C (2397) MEX-ch Mexico City 2023 (4)}) 1/2-1/2

[Event "82nd Italian Championship 2023"]
[Site "Brescia"]
[Date "2023.12.02"]
[Round "5.1"]
[White "David, Alberto"]
[Black "Santagati, Alessandro"]
[Result "1-0"]
[ECO "B50"]
[WhiteElo "2532"]
[BlackElo "2245"]
[Annotator "ChessBase"]
[PlyCount "51"]
[EventDate "2023.11.28"]
[EventType "tourn"]
[EventCountry "ITA"]
[SourceTitle "playchess.com"]
[Source "ChessBase"]
[SourceQuality "1"]
[TimeControl "40/6000+30:20/3000+30:900+30"]

1. e4 {[%emt 0:00:04]} c5 {[%emt 0:07:21]} 2. Nf3 {[%emt 0:00:12]} d6 {[%emt 0:00:05]} 3. c3 {[%emt 0:06:05]} Nf6 {[%emt 0:01:07]} 4. Be2 {[%emt 0:00:06]} Nc6 {[%emt 0:00:20]} 5. d4 {[%emt 0:02:44]} cxd4 {[%emt 0:05:08]} 6. cxd4 {[%emt 0:00:06]} d5 {[%emt 0:19:07]} 7. e5 {[%emt 0:04:27]} Ne4 {[%emt 0:02:26]} 8. O-O {[%emt 0:06:01]} e6 {[%emt 0:04:52]} 9. Be3 {[%emt 0:08:00]} Be7 {[%emt 0:09:17]} 10. Nfd2 {[%emt 0:11:34]} Nxd2 {[%emt 0:03:31]} 11. Nxd2 {[%emt 0:02:06]} f5 {[%emt 0:07:07]} 12. exf6 {[%emt 0:03:06]} Bxf6 {[%emt 0:00:09]} 13. Nf3 {[%emt 0:03:13]} O-O {[%emt 0:01:01]} 14. Qd2 {[%emt 0:01:58]} e5 {[%emt 0:13:06]} 15. dxe5 {[%emt 0:02:13]} Nxe5 {[%emt 0:00:14]} 16. Nxe5 {[%emt 0:09:23]} Bxe5 {[%emt 0:00:07]} 17. Rad1 {[%emt 0:00:57]} Be6 {[%emt 0:03:04]} 18. f4 {[%emt 0:02:13]} Bc7 {[%emt 0:04:43]} 19. Bf3 {[%emt 0:02:44]} d4 {[%emt 0:06:26]} 20. Qxd4 {[%emt 0:20:05]} Qxd4 {[%emt 0:00:17]} 21. Rxd4 {[%emt 0:01:52]} Bb6 {[%emt 0:01:50]} 22. Re4 {[%emt 0:00:49]} Bxa2 {[%emt 0:12:37]} 23. Bxb6 {[%emt 0:00:17]} axb6 {[%emt 0:00:04]} 24. Rb4 {[%emt 0:00:12]} Rf6 {[%emt 0:06:34]} 25. Ra1 {[%emt 0:05:18]} Ra5 {[%emt 0:00:21]} 26. Rxa2 {[%emt 0:00:11]} 1-0